[Event "*** SCC Grand Prix: Titled Tuesday Blitz"]
[Site "Chess.com"]
[Date "2020.08.25"]
[Round "10"]
[White "mattcolins2025"]
[Black "PavelShkapenko"]
[Result "0-1"]
[WhiteElo "2469"]
[BlackElo "2618"]
[TimeControl "180+1"]
[EndTime "11:54:14 PDT"]
[Termination "PavelShkapenko won by checkmate"]

1. d4 {[%clk 0:03:00.9]} 1... Nf6 {[%clk 0:02:59.5]} 2. c4 {[%clk 0:03:01.4]}
2... e6 {[%clk 0:02:59.6]} 3. Nc3 {[%clk 0:03:01.9]} 3... Bb4 {[%clk 0:02:59.4]}
4. Qc2 {[%clk 0:03:02.3]} 4... c5 {[%clk 0:02:59.5]} 5. dxc5 {[%clk 0:03:02.2]}
5... Bxc5 {[%clk 0:02:59.9]} 6. Nf3 {[%clk 0:03:02]} 6... Qb6 {[%clk 0:03:00.4]}
7. e3 {[%clk 0:03:01.2]} 7... Qc7 {[%clk 0:03:00.9]} 8. Bd3 {[%clk 0:02:56.8]}
8... b6 {[%clk 0:02:58.1]} 9. O-O {[%clk 0:02:56.5]} 9... Bb7 {[%clk 0:02:58.2]}
10. e4 {[%clk 0:02:56.5]} 10... Nc6 {[%clk 0:02:56.1]} 11. a3 {[%clk 0:02:56]}
11... Ng4 {[%clk 0:02:56.1]} 12. h3 {[%clk 0:02:55.2]} 12... Nd4 {[%clk
0:02:55.9]} 13. hxg4 {[%clk 0:02:35.9]} 13... Nxc2 {[%clk 0:02:45.8]} 14. Bxc2
{[%clk 0:02:35.6]} 14... a6 {[%clk 0:02:45.3]} 15. g3 {[%clk 0:02:34.8]} 15...
Qxg3+ {[%clk 0:02:43.2]} 16. Kh1 {[%clk 0:02:33]} 16... Qxf3+ {[%clk 0:02:43.2]}
17. Kh2 {[%clk 0:02:33.5]} 17... Bd6+ {[%clk 0:02:36.8]} 18. Kg1 {[%clk
0:02:32.6]} 18... Qxg4+ {[%clk 0:02:36.9]} 19. Kh1 {[%clk 0:02:32.4]} 19... Qh3+
{[%clk 0:02:36.5]} 20. Kg1 {[%clk 0:02:32.2]} 20... Qh2# {[%clk 0:02:36.5]} 0-1

[Event "*** SCC Grand Prix: Titled Tuesday Blitz"]
[Site "Chess.com"]
[Date "2020.08.25"]
[Round "10"]
[White "MashaFromRussia"]
[Black "WinstonSilvakov"]
[Result "1-0"]
[WhiteElo "2399"]
[BlackElo "2140"]
[TimeControl "180+1"]
[EndTime "11:54:47 PDT"]
[Termination "MashaFromRussia won by resignation"]

1. d4 {[%clk 0:03:00.9]} 1... Nf6 {[%clk 0:02:59.9]} 2. c4 {[%clk 0:03:01.1]}
2... e5 {[%clk 0:02:58.9]} 3. dxe5 {[%clk 0:03:00.2]} 3... Ng4 {[%clk
0:02:57.6]} 4. Bf4 {[%clk 0:03:00.5]} 4... Bc5 {[%clk 0:02:53.8]} 5. e3 {[%clk
0:03:00]} 5... d6 {[%clk 0:02:54.2]} 6. exd6 {[%clk 0:02:59]} 6... Nc6 {[%clk
0:02:53.5]} 7. Nf3 {[%clk 0:02:58]} 7... Qf6 {[%clk 0:02:52.4]} 8. Qd2 {[%clk
0:02:43.9]} 8... cxd6 {[%clk 0:02:49.4]} 9. Bd3 {[%clk 0:02:34.9]} 9... O-O
{[%clk 0:02:44.3]} 10. O-O {[%clk 0:02:33.8]} 10... Nge5 {[%clk 0:02:44.5]} 11.
Be2 {[%clk 0:02:33.3]} 11... Nxf3+ {[%clk 0:02:42.8]} 12. Bxf3 {[%clk
0:02:34.2]} 12... Ne5 {[%clk 0:02:42.8]} 13. Bd5 {[%clk 0:02:30.5]} 13... Be6
{[%clk 0:02:38.6]} 14. Nc3 {[%clk 0:02:26.8]} 14... Nxc4 {[%clk 0:02:37.1]} 15.
Bxc4 {[%clk 0:02:15.5]} 15... Bxc4 {[%clk 0:02:35.4]} 16. Rfd1 {[%clk
0:02:15.9]} 16... Rfd8 {[%clk 0:02:32.4]} 17. Ne4 {[%clk 0:02:14.2]} 17... Qg6
{[%clk 0:02:28.7]} 18. Nxc5 {[%clk 0:02:09.3]} 1-0

[Event "*** SCC Grand Prix: Titled Tuesday Blitz"]
[Site "Chess.com"]
[Date "2020.08.25"]
[Round "10"]
[White "seorobert1971"]
[Black "Jumbo"]
[Result "0-1"]
[WhiteElo "2644"]
[BlackElo "2785"]
[TimeControl "180+1"]
[EndTime "11:55:11 PDT"]
[Termination "Jumbo won by resignation"]

1. c4 {[%clk 0:03:00.9]} 1... e5 {[%clk 0:02:56.4]} 2. Nc3 {[%clk 0:03:00.8]}
2... Nf6 {[%clk 0:02:55.6]} 3. Nf3 {[%clk 0:03:00.7]} 3... Nc6 {[%clk
0:02:55.2]} 4. g3 {[%clk 0:03:00.5]} 4... d5 {[%clk 0:02:55.1]} 5. cxd5 {[%clk
0:03:00.7]} 5... Nxd5 {[%clk 0:02:56]} 6. Bg2 {[%clk 0:03:01.1]} 6... Nb6 {[%clk
0:02:56.5]} 7. O-O {[%clk 0:03:01.3]} 7... Be7 {[%clk 0:02:57]} 8. d3 {[%clk
0:03:01.6]} 8... O-O {[%clk 0:02:56.8]} 9. Be3 {[%clk 0:03:01.9]} 9... Be6
{[%clk 0:02:56]} 10. Rc1 {[%clk 0:03:01.5]} 10... f5 {[%clk 0:02:51]} 11. Na4
{[%clk 0:02:56.2]} 11... Bxa2 {[%clk 0:02:37.8]} 12. Nxb6 {[%clk 0:02:49.9]}
12... axb6 {[%clk 0:02:38.7]} 13. b3 {[%clk 0:02:49.9]} 13... f4 {[%clk
0:02:21.8]} 14. Bd2 {[%clk 0:02:47.6]} 14... Qd5 {[%clk 0:02:21.5]} 15. Bc3
{[%clk 0:02:35.2]} 15... Bxb3 {[%clk 0:02:18.3]} 16. Nxe5 {[%clk 0:02:29.7]}
16... f3 {[%clk 0:02:10.2]} 17. Nxc6 {[%clk 0:02:16.1]} 17... bxc6 {[%clk
0:02:07.8]} 0-1

[Event "*** SCC Grand Prix: Titled Tuesday Blitz"]
[Site "Chess.com"]
[Date "2020.08.25"]
[Round "10"]
[White "EddieMarsalla"]
[Black "margarita_2703"]
[Result "1-0"]
[WhiteElo "2541"]
[BlackElo "2408"]
[TimeControl "180+1"]
[EndTime "11:55:35 PDT"]
[Termination "EddieMarsalla won by resignation"]

1. d4 {[%clk 0:03:00.9]} 1... d5 {[%clk 0:02:45.1]} 2. Bg5 {[%clk 0:02:58.8]}
2... c5 {[%clk 0:02:42]} 3. e3 {[%clk 0:02:58.9]} 3... Nc6 {[%clk 0:02:41.8]} 4.
c3 {[%clk 0:02:59.3]} 4... Qb6 {[%clk 0:02:41.8]} 5. Qb3 {[%clk 0:02:59]} 5...
c4 {[%clk 0:02:41.3]} 6. Qc2 {[%clk 0:02:59.5]} 6... h6 {[%clk 0:02:39.9]} 7.
Bh4 {[%clk 0:02:59.3]} 7... Bf5 {[%clk 0:02:39.3]} 8. Qxf5 {[%clk 0:02:59.2]}
8... Qxb2 {[%clk 0:02:38.3]} 9. Qxd5 {[%clk 0:02:59.7]} 9... Qxa1 {[%clk
0:02:37.9]} 10. Qb5 {[%clk 0:03:00.2]} 10... Kd8 {[%clk 0:02:14.7]} 11. Bg3
{[%clk 0:02:48.9]} 11... e5 {[%clk 0:02:09.7]} 12. Bxc4 {[%clk 0:02:41.4]} 12...
Ba3 {[%clk 0:01:56]} 13. Ne2 {[%clk 0:02:41.3]} 13... Qb2 {[%clk 0:01:55.2]} 14.
Qd5+ {[%clk 0:02:41.8]} 14... Kc8 {[%clk 0:01:48.9]} 15. O-O {[%clk 0:02:39.5]}
15... Nge7 {[%clk 0:01:43.8]} 16. Qxf7 {[%clk 0:02:37.4]} 16... Bd6 {[%clk
0:01:39]} 17. dxe5 {[%clk 0:02:29.2]} 17... Nxe5 {[%clk 0:01:31.8]} 18. Bxe5
{[%clk 0:02:26.6]} 18... Bxe5 {[%clk 0:01:29.2]} 19. Qxe7 {[%clk 0:02:26.6]} 1-0

[Event "*** SCC Grand Prix: Titled Tuesday Blitz"]
[Site "Chess.com"]
[Date "2020.08.25"]
[Round "10"]
[White "politeplayer"]
[Black "Manukyan_Artak"]
[Result "1-0"]
[WhiteElo "2218"]
[BlackElo "2306"]
[TimeControl "180+1"]
[EndTime "11:55:35 PDT"]
[Termination "politeplayer won by resignation"]

1. e4 {[%clk 0:03:00.9]} 1... c6 {[%clk 0:02:59.9]} 2. d4 {[%clk 0:03:00.3]}
2... d5 {[%clk 0:03:00.8]} 3. exd5 {[%clk 0:03:00.3]} 3... cxd5 {[%clk
0:03:00.6]} 4. c4 {[%clk 0:03:00.8]} 4... Nf6 {[%clk 0:03:00]} 5. Nc3 {[%clk
0:03:01.2]} 5... g6 {[%clk 0:02:59.7]} 6. g3 {[%clk 0:02:58.5]} 6... Bg7 {[%clk
0:03:00.6]} 7. Bg2 {[%clk 0:02:58.2]} 7... dxc4 {[%clk 0:03:00.3]} 8. Qa4+
{[%clk 0:02:55.9]} 8... Bd7 {[%clk 0:02:19.4]} 9. Qxc4 {[%clk 0:02:54.4]} 9...
Bc6 {[%clk 0:02:19.4]} 10. d5 {[%clk 0:02:47.7]} 10... Qd7 {[%clk 0:02:18.6]}
11. dxc6 {[%clk 0:02:43.6]} 11... Nxc6 {[%clk 0:02:19.5]} 12. Bxc6 {[%clk
0:02:36.4]} 12... bxc6 {[%clk 0:02:17.3]} 13. Be3 {[%clk 0:02:32.7]} 13... O-O
{[%clk 0:02:12]} 14. Rd1 {[%clk 0:02:32.7]} 14... Qb7 {[%clk 0:02:08.3]} 15.
Nge2 {[%clk 0:02:29.3]} 15... Qxb2 {[%clk 0:02:05.1]} 16. O-O {[%clk 0:02:27.9]}
16... Rfc8 {[%clk 0:01:59.9]} 17. Rb1 {[%clk 0:02:20.2]} 17... Qc2 {[%clk
0:01:56.7]} 18. Nd4 {[%clk 0:02:16.2]} 18... Qxb1 {[%clk 0:01:36.6]} 19. Rxb1
{[%clk 0:02:14.5]} 1-0

[Event "*** SCC Grand Prix: Titled Tuesday Blitz"]
[Site "Chess.com"]
[Date "2020.08.25"]
[Round "10"]
[White "Oglob71"]
[Black "Balla_Tamas"]
[Result "0-1"]
[WhiteElo "2541"]
[BlackElo "2466"]
[TimeControl "180+1"]
[EndTime "11:56:16 PDT"]
[Termination "Balla_Tamas won on time"]

1. d4 {[%clk 0:03:00.9]} 1... Nf6 {[%clk 0:02:59]} 2. Nf3 {[%clk 0:03:00.1]}
2... e6 {[%clk 0:02:58.6]} 3. c4 {[%clk 0:03:00.6]} 3... b6 {[%clk 0:02:57.5]}
4. Bf4 {[%clk 0:02:59.2]} 4... Bb7 {[%clk 0:02:56.8]} 5. e3 {[%clk 0:02:54.8]}
5... Bb4+ {[%clk 0:02:54.3]} 6. Nfd2 {[%clk 0:02:52.7]} 6... O-O {[%clk
0:02:51.8]} 7. a3 {[%clk 0:02:52.6]} 7... Be7 {[%clk 0:02:51.3]} 8. Nc3 {[%clk
0:02:35.7]} 8... d5 {[%clk 0:02:49.4]} 9. cxd5 {[%clk 0:02:33.6]} 9... Nxd5
{[%clk 0:02:48.8]} 10. Nxd5 {[%clk 0:02:01]} 10... Bxd5 {[%clk 0:02:49.7]} 11.
Qc2 {[%clk 0:01:57.9]} 11... c5 {[%clk 0:02:48.8]} 0-1

[Event "*** SCC Grand Prix: Titled Tuesday Blitz"]
[Site "Chess.com"]
[Date "2020.08.25"]
[Round "10"]
[White "Shubinkirill2003"]
[Black "chito89"]
[Result "0-1"]
[WhiteElo "2641"]
[BlackElo "2781"]
[TimeControl "180+1"]
[EndTime "11:56:36 PDT"]
[Termination "chito89 won by resignation"]

1. e4 {[%clk 0:03:00.9]} 1... c5 {[%clk 0:02:59.2]} 2. Nf3 {[%clk 0:03:00.6]}
2... e6 {[%clk 0:02:59.5]} 3. g3 {[%clk 0:03:00.4]} 3... Nc6 {[%clk 0:02:55]} 4.
Bg2 {[%clk 0:03:00.1]} 4... Nf6 {[%clk 0:02:55.4]} 5. Qe2 {[%clk 0:02:59.3]}
5... d5 {[%clk 0:02:48.4]} 6. exd5 {[%clk 0:02:59.2]} 6... Nxd5 {[%clk
0:02:49.3]} 7. O-O {[%clk 0:02:59.3]} 7... Be7 {[%clk 0:02:46]} 8. Rd1 {[%clk
0:02:59.3]} 8... e5 {[%clk 0:02:42.9]} 9. Nxe5 {[%clk 0:02:47.4]} 9... Nd4
{[%clk 0:02:39.8]} 10. Qd3 {[%clk 0:02:08.7]} 10... Nb4 {[%clk 0:02:27.9]} 11.
Qe4 {[%clk 0:01:50.9]} 11... Nbxc2 {[%clk 0:02:20.7]} 12. Nc3 {[%clk 0:01:42.7]}
12... Nxa1 {[%clk 0:02:19.6]} 13. Nd5 {[%clk 0:01:23.5]} 13... Be6 {[%clk
0:02:15.9]} 14. Nxe7 {[%clk 0:01:13.1]} 14... Qxe7 {[%clk 0:02:16.8]} 15. b3
{[%clk 0:01:08.9]} 15... O-O {[%clk 0:02:11]} 16. b4 {[%clk 0:01:04.1]} 16...
Nac2 {[%clk 0:02:06.8]} 17. bxc5 {[%clk 0:01:03.2]} 17... Qxc5 {[%clk
0:02:04.1]} 18. Bb2 {[%clk 0:01:00.7]} 18... Rfd8 {[%clk 0:01:58]} 19. Rc1
{[%clk 0:00:59.8]} 19... Qb5 {[%clk 0:01:58.4]} 20. Rxc2 {[%clk 0:00:54]} 20...
Nxc2 {[%clk 0:01:59.3]} 21. Qxc2 {[%clk 0:00:54.7]} 21... Rac8 {[%clk
0:01:59.9]} 22. Bc3 {[%clk 0:00:54.7]} 22... Qxe5 {[%clk 0:02:00]} 0-1

[Event "*** SCC Grand Prix: Titled Tuesday Blitz"]
[Site "Chess.com"]
[Date "2020.08.25"]
[Round "10"]
[White "juancruzarias"]
[Black "sergeikim"]
[Result "1/2-1/2"]
[WhiteElo "2382"]
[BlackElo "2505"]
[TimeControl "180+1"]
[EndTime "11:56:53 PDT"]
[Termination "Game drawn by repetition"]

1. e4 {[%clk 0:03:00.9]} 1... e5 {[%clk 0:02:59.1]} 2. Nc3 {[%clk 0:02:59.7]}
2... Nf6 {[%clk 0:02:58.3]} 3. Nf3 {[%clk 0:02:59.6]} 3... Nc6 {[%clk
0:02:57.5]} 4. d4 {[%clk 0:02:59.5]} 4... exd4 {[%clk 0:02:56.9]} 5. Nxd4 {[%clk
0:03:00.4]} 5... Bb4 {[%clk 0:02:56.8]} 6. Nxc6 {[%clk 0:03:00.6]} 6... bxc6
{[%clk 0:02:57.4]} 7. Bd3 {[%clk 0:03:01.2]} 7... d5 {[%clk 0:02:57.9]} 8. exd5
{[%clk 0:03:01.3]} 8... Qe7+ {[%clk 0:02:58.2]} 9. Qe2 {[%clk 0:02:58.7]} 9...
Qxe2+ {[%clk 0:02:57.6]} 10. Kxe2 {[%clk 0:02:57.9]} 10... Nxd5 {[%clk
0:02:58.2]} 11. Nxd5 {[%clk 0:02:56.1]} 11... cxd5 {[%clk 0:02:59.1]} 12. Bf4
{[%clk 0:02:52.2]} 12... c5 {[%clk 0:02:52.1]} 13. c3 {[%clk 0:02:49.8]} 13...
Ba5 {[%clk 0:02:51.3]} 14. Rhe1 {[%clk 0:02:17]} 14... Be6 {[%clk 0:02:30.3]}
15. Bb5+ {[%clk 0:02:15.2]} 15... Ke7 {[%clk 0:02:27.2]} 16. Kf3 {[%clk
0:02:00.1]} 16... Rac8 {[%clk 0:02:07.1]} 17. Re2 {[%clk 0:01:47.9]} 17... Rhd8
{[%clk 0:01:47.3]} 18. Bd3 {[%clk 0:01:27.5]} 18... h6 {[%clk 0:01:40.9]} 19. h3
{[%clk 0:01:21.7]} 19... Kd7 {[%clk 0:01:33.9]} 20. Bb5+ {[%clk 0:01:18]} 20...
Ke7 {[%clk 0:01:33.5]} 21. Bd3 {[%clk 0:01:16.2]} 21... Kd7 {[%clk 0:01:31.6]}
22. Bb5+ {[%clk 0:01:12.5]} 22... Ke7 {[%clk 0:01:31.6]} 23. Bd3 {[%clk
0:01:13]} 1/2-1/2

[Event "*** SCC Grand Prix: Titled Tuesday Blitz"]
[Site "Chess.com"]
[Date "2020.08.25"]
[Round "10"]
[White "Chessdemon2019"]
[Black "JesseKraai"]
[Result "0-1"]
[WhiteElo "2361"]
[BlackElo "2535"]
[TimeControl "180+1"]
[EndTime "11:57:02 PDT"]
[Termination "JesseKraai won by resignation"]

1. e4 {[%clk 0:03:00.9]} 1... d6 {[%clk 0:02:59.5]} 2. d4 {[%clk 0:03:00.6]}
2... Nf6 {[%clk 0:02:59.7]} 3. Nc3 {[%clk 0:03:00.1]} 3... e5 {[%clk 0:02:58.3]}
4. dxe5 {[%clk 0:02:58.1]} 4... dxe5 {[%clk 0:02:58.2]} 5. Qxd8+ {[%clk
0:02:59]} 5... Kxd8 {[%clk 0:02:58.2]} 6. Bc4 {[%clk 0:02:59.9]} 6... Be6 {[%clk
0:02:54.4]} 7. Bxe6 {[%clk 0:03:00.1]} 7... fxe6 {[%clk 0:02:54.5]} 8. Nf3
{[%clk 0:03:01]} 8... Nbd7 {[%clk 0:02:54.1]} 9. O-O {[%clk 0:03:00.2]} 9... Bc5
{[%clk 0:02:51]} 10. Be3 {[%clk 0:02:57.9]} 10... Bxe3 {[%clk 0:02:49.9]} 11.
fxe3 {[%clk 0:02:58]} 11... Ke7 {[%clk 0:02:50]} 12. h3 {[%clk 0:02:56.7]} 12...
Ne8 {[%clk 0:02:44]} 13. Rad1 {[%clk 0:02:37.9]} 13... Nd6 {[%clk 0:02:43.7]}
14. b3 {[%clk 0:02:31.4]} 14... a6 {[%clk 0:02:40.1]} 15. a4 {[%clk 0:02:29.5]}
15... b5 {[%clk 0:02:33.9]} 16. Nd2 {[%clk 0:02:23.9]} 16... Nc5 {[%clk
0:02:27.8]} 17. axb5 {[%clk 0:02:19.8]} 17... axb5 {[%clk 0:02:27.4]} 18. b4
{[%clk 0:02:20.6]} 18... Na4 {[%clk 0:02:19.6]} 19. Nxa4 {[%clk 0:02:16.6]}
19... Rxa4 {[%clk 0:02:19.6]} 20. c4 {[%clk 0:02:17.3]} 20... bxc4 {[%clk
0:02:12.7]} 21. Rb1 {[%clk 0:02:15.6]} 21... Rb8 {[%clk 0:02:10.3]} 22. Rfc1
{[%clk 0:02:12.6]} 22... Rbxb4 {[%clk 0:02:09.2]} 23. Rxb4 {[%clk 0:02:09.6]}
23... Rxb4 {[%clk 0:02:09.4]} 24. Kf2 {[%clk 0:02:09.3]} 24... Rb2 {[%clk
0:02:03.9]} 25. Ke1 {[%clk 0:02:06.5]} 25... Kd7 {[%clk 0:02:04]} 26. Nxc4
{[%clk 0:02:05.9]} 26... Nxc4 {[%clk 0:02:02.3]} 27. Rxc4 {[%clk 0:02:06.8]}
27... Rxg2 {[%clk 0:02:02.2]} 28. Rc3 {[%clk 0:02:05.8]} 28... Rh2 {[%clk
0:02:01.3]} 29. Rd3+ {[%clk 0:02:06]} 29... Ke7 {[%clk 0:01:59.8]} 30. Rc3
{[%clk 0:02:05.5]} 30... Rxh3 {[%clk 0:02:00]} 31. Rxc7+ {[%clk 0:02:05.2]}
31... Kf6 {[%clk 0:02:00.3]} 32. Kf2 {[%clk 0:02:05.3]} 32... Rh2+ {[%clk
0:01:59.6]} 33. Kg3 {[%clk 0:02:05.2]} 33... Re2 {[%clk 0:01:58.9]} 34. Kf3
{[%clk 0:02:05.5]} 34... Ra2 {[%clk 0:01:58.6]} 35. Rc8 {[%clk 0:02:05.3]} 35...
h5 {[%clk 0:01:56.6]} 36. Rf8+ {[%clk 0:02:05.3]} 36... Kg5 {[%clk 0:01:56.2]}
37. Kg3 {[%clk 0:02:05.5]} 37... Ra3 {[%clk 0:01:55.1]} 38. Kf3 {[%clk
0:02:05.8]} 38... h4 {[%clk 0:01:53.5]} 39. Rh8 {[%clk 0:02:06]} 39... Ra1
{[%clk 0:01:52.2]} 40. Rh7 {[%clk 0:02:05]} 40... g6 {[%clk 0:01:51.3]} 41. Rh8
{[%clk 0:02:04.9]} 41... Rf1+ {[%clk 0:01:51]} 42. Kg2 {[%clk 0:02:05]} 42...
Rf6 {[%clk 0:01:49.9]} 43. Rh7 {[%clk 0:01:59.4]} 43... Kg4 {[%clk 0:01:49.3]}
44. Ra7 {[%clk 0:01:59.1]} 44... h3+ {[%clk 0:01:46.8]} 45. Kg1 {[%clk
0:01:59.1]} 45... Kg3 {[%clk 0:01:46.1]} 46. Ra2 {[%clk 0:01:58.9]} 46... h2+
{[%clk 0:01:37.1]} 47. Rxh2 {[%clk 0:01:58.6]} 47... Rf1+ {[%clk 0:01:37.2]} 48.
Kxf1 {[%clk 0:01:59.1]} 48... Kxh2 {[%clk 0:01:37.7]} 49. Kf2 {[%clk 0:01:59.8]}
49... Kh3 {[%clk 0:01:38.1]} 50. Kf3 {[%clk 0:02:00.1]} 50... g5 {[%clk
0:01:37.2]} 51. Kf2 {[%clk 0:02:00.6]} 51... g4 {[%clk 0:01:37]} 52. Kg1 {[%clk
0:02:00.3]} 52... Kg3 {[%clk 0:01:37.2]} 53. Kf1 {[%clk 0:02:00.8]} 53... Kf3
{[%clk 0:01:37.3]} 54. Kg1 {[%clk 0:02:01.5]} 54... Kxe3 {[%clk 0:01:37.6]} 55.
Kg2 {[%clk 0:02:02.3]} 55... Kxe4 {[%clk 0:01:38.1]} 56. Kg3 {[%clk 0:02:03.2]}
56... Kf5 {[%clk 0:01:38.6]} 0-1

[Event "*** SCC Grand Prix: Titled Tuesday Blitz"]
[Site "Chess.com"]
[Date "2020.08.25"]
[Round "10"]
[White "Schandenfreude"]
[Black "AGW2016"]
[Result "1-0"]
[WhiteElo "2488"]
[BlackElo "2351"]
[TimeControl "180+1"]
[EndTime "11:57:05 PDT"]
[Termination "Schandenfreude won by resignation"]

1. Nf3 {[%clk 0:03:00.9]} 1... Nf6 {[%clk 0:02:59]} 2. c4 {[%clk 0:02:52.3]}
2... g6 {[%clk 0:02:59.9]} 3. b3 {[%clk 0:02:51.8]} 3... Bg7 {[%clk 0:02:59.5]}
4. Bb2 {[%clk 0:02:51.9]} 4... O-O {[%clk 0:02:59.6]} 5. e3 {[%clk 0:02:42.5]}
5... c5 {[%clk 0:02:58.3]} 6. Be2 {[%clk 0:02:41.9]} 6... Nc6 {[%clk 0:02:56.8]}
7. O-O {[%clk 0:02:41.4]} 7... d5 {[%clk 0:02:50.7]} 8. cxd5 {[%clk 0:02:40.4]}
8... Nxd5 {[%clk 0:02:51.6]} 9. Bxg7 {[%clk 0:02:38.7]} 9... Kxg7 {[%clk
0:02:52.5]} 10. Qc1 {[%clk 0:02:37.7]} 10... b6 {[%clk 0:02:49.3]} 11. d4 {[%clk
0:02:31.5]} 11... Bg4 {[%clk 0:02:47.9]} 12. dxc5 {[%clk 0:02:29.6]} 12... bxc5
{[%clk 0:02:48.8]} 13. Rd1 {[%clk 0:02:18.9]} 13... e6 {[%clk 0:02:38.3]} 14. e4
{[%clk 0:02:08.6]} 14... Qf6 {[%clk 0:02:36.1]} 15. exd5 {[%clk 0:02:08.5]}
15... Qxa1 {[%clk 0:02:35.3]} 16. dxc6 {[%clk 0:02:06.8]} 16... Rfd8 {[%clk
0:02:35.5]} 17. Re1 {[%clk 0:01:36.5]} 17... Rac8 {[%clk 0:02:23.2]} 18. Qxc5
{[%clk 0:01:30.3]} 18... Rd5 {[%clk 0:02:19.2]} 19. Qc4 {[%clk 0:01:04.9]} 19...
Qxa2 {[%clk 0:02:06]} 20. Nc3 {[%clk 0:00:30.2]} 20... Bxf3 {[%clk 0:02:02.2]}
21. Nxa2 {[%clk 0:00:27.5]} 21... Bxe2 {[%clk 0:01:59.8]} 22. Qxe2 {[%clk
0:00:25.8]} 22... Rxc6 {[%clk 0:02:00.1]} 23. Nb4 {[%clk 0:00:25.7]} 1-0

[Event "*** SCC Grand Prix: Titled Tuesday Blitz"]
[Site "Chess.com"]
[Date "2020.08.25"]
[Round "10"]
[White "Artyom_ChessMate"]
[Black "carlsen1001"]
[Result "1-0"]
[WhiteElo "2568"]
[BlackElo "2401"]
[TimeControl "180+1"]
[EndTime "11:57:11 PDT"]
[Termination "Artyom_ChessMate won by resignation"]

1. e4 {[%clk 0:03:00.9]} 1... c5 {[%clk 0:02:59.8]} 2. Nc3 {[%clk 0:02:59.9]}
2... Nc6 {[%clk 0:02:59.3]} 3. Bb5 {[%clk 0:02:59.2]} 3... g6 {[%clk 0:02:59.3]}
4. Bxc6 {[%clk 0:02:59.1]} 4... dxc6 {[%clk 0:02:59.3]} 5. d3 {[%clk 0:03:00]}
5... Bg7 {[%clk 0:02:59.7]} 6. f4 {[%clk 0:03:00.9]} 6... e6 {[%clk 0:02:59.5]}
7. Nf3 {[%clk 0:03:01.8]} 7... Ne7 {[%clk 0:02:59.7]} 8. O-O {[%clk 0:03:02.4]}
8... O-O {[%clk 0:02:59.9]} 9. Qe1 {[%clk 0:03:03]} 9... b5 {[%clk 0:02:59.5]}
10. Qh4 {[%clk 0:03:00.5]} 10... b4 {[%clk 0:02:59.8]} 11. Na4 {[%clk
0:02:59.7]} 11... c4 {[%clk 0:02:48.7]} 12. Rd1 {[%clk 0:02:41.7]} 12... h6
{[%clk 0:02:32.5]} 13. Be3 {[%clk 0:02:31.7]} 13... f5 {[%clk 0:02:13]} 14. dxc4
{[%clk 0:02:24.5]} 14... Qc7 {[%clk 0:02:12]} 15. e5 {[%clk 0:02:20.7]} 15...
Ba6 {[%clk 0:02:10.2]} 16. b3 {[%clk 0:02:20.3]} 16... Rad8 {[%clk 0:02:09.1]}
17. Bc5 {[%clk 0:02:16.1]} 17... g5 {[%clk 0:01:58.8]} 18. fxg5 {[%clk
0:02:10.7]} 18... Ng6 {[%clk 0:01:59.2]} 19. Qg3 {[%clk 0:01:57]} 19... Nxe5
{[%clk 0:01:58]} 20. gxh6 {[%clk 0:01:35.1]} 20... Nxf3+ {[%clk 0:01:55.9]} 21.
gxf3 {[%clk 0:01:09.2]} 21... Qxg3+ {[%clk 0:01:53.2]} 22. hxg3 {[%clk
0:01:10.1]} 22... Bxa1 {[%clk 0:01:53.3]} 23. Rxa1 {[%clk 0:01:03]} 23... Rf6
{[%clk 0:01:52.7]} 24. Be7 {[%clk 0:01:00.8]} 24... Rdf8 {[%clk 0:01:30.9]} 25.
Bxf6 {[%clk 0:00:57.3]} 25... Rxf6 {[%clk 0:01:31.8]} 26. Rd1 {[%clk 0:00:57.6]}
1-0

[Event "*** SCC Grand Prix: Titled Tuesday Blitz"]
[Site "Chess.com"]
[Date "2020.08.25"]
[Round "10"]
[White "lucachess49"]
[Black "Quiet_Desperation"]
[Result "0-1"]
[WhiteElo "2439"]
[BlackElo "2297"]
[TimeControl "180+1"]
[EndTime "11:57:17 PDT"]
[Termination "Quiet_Desperation won by resignation"]

1. d4 {[%clk 0:03:00.9]} 1... d5 {[%clk 0:02:59.8]} 2. c4 {[%clk 0:03:01]} 2...
c6 {[%clk 0:03:00.2]} 3. Nc3 {[%clk 0:03:01.5]} 3... Nf6 {[%clk 0:03:00.7]} 4.
e3 {[%clk 0:02:59.5]} 4... Bf5 {[%clk 0:02:55.2]} 5. cxd5 {[%clk 0:02:59.1]}
5... cxd5 {[%clk 0:02:53.7]} 6. Qb3 {[%clk 0:02:58.9]} 6... Bc8 {[%clk
0:02:38.5]} 7. Nf3 {[%clk 0:02:57.1]} 7... e6 {[%clk 0:02:31.9]} 8. Bd3 {[%clk
0:02:48.3]} 8... Bd6 {[%clk 0:02:30.1]} 9. O-O {[%clk 0:02:47.7]} 9... O-O
{[%clk 0:02:29.3]} 10. Bd2 {[%clk 0:02:46.4]} 10... a6 {[%clk 0:02:29.4]} 11. h3
{[%clk 0:02:43.6]} 11... Nc6 {[%clk 0:02:29.7]} 12. Rad1 {[%clk 0:02:41.9]}
12... e5 {[%clk 0:02:02.1]} 13. dxe5 {[%clk 0:02:39.2]} 13... Nxe5 {[%clk
0:02:02.2]} 14. Nxe5 {[%clk 0:02:39.6]} 14... Bxe5 {[%clk 0:02:02.3]} 15. Ne2
{[%clk 0:02:30.2]} 15... Rb8 {[%clk 0:01:44.1]} 16. Bc3 {[%clk 0:02:28.4]} 16...
Bc7 {[%clk 0:01:40.7]} 17. Nf4 {[%clk 0:02:24.8]} 17... Be6 {[%clk 0:01:38.6]}
18. Nxe6 {[%clk 0:02:14.3]} 18... fxe6 {[%clk 0:01:38.3]} 19. e4 {[%clk
0:02:15]} 19... Qe7 {[%clk 0:01:09.4]} 20. Bxf6 {[%clk 0:02:02.4]} 20... Qxf6
{[%clk 0:01:01.3]} 21. exd5 {[%clk 0:02:03.3]} 21... exd5 {[%clk 0:00:55.7]} 22.
Qxd5+ {[%clk 0:02:01.5]} 22... Kh8 {[%clk 0:00:52.8]} 23. Qh5 {[%clk 0:02:01.9]}
23... g6 {[%clk 0:00:52.7]} 24. Qh6 {[%clk 0:01:59.3]} 24... Bf4 {[%clk
0:00:47.1]} 0-1